[Event "AI Cup Div-2 2023"]
[Site "Online"]
[Date "2023.09.26"]
[Round "2.4"]
[White "Artemiev, Vladislav"]
[Black "Duda, Jan-Krzysztof"]
[Result "1-0"]
[ECO "A50"]
[WhiteElo "2697"]
[BlackElo "2726"]
[Annotator "TA"]
[PlyCount "167"]
[EventDate "2023.09.18"]
[EventType "k.o."]
[EventCountry "NET"]
[SourceTitle "playchess.com"]
[Source "ChessBase"]
[SourceQuality "1"]
[TimeControl "900+3"]

{[%evp 12,167,27,28,32,27,30,34,35,22,20,20,18,-5,22,0,0,0,0,16,22,25,19,11,22,23,31,28,19,31,21,25,96,95,96,95,87,93,127,119,112,123,221,236,299,295,295,261,260,228,227,218,218,209,212,131,412,0,389,0,410,343,415,420,420,141,392,0,418,406,379,319,358,0,371,370,359,343,333,332,361,354,791,760,712,448,448,0,834,817,967,703,1098,1036,1036,1018,880,867,805,795,791,783,6767,7303,12828,12828,12829,12830,12816,12815,5922,1691,1841,1958,1289,1139,975,754,868,839,12819,12825,10532,7834,12811,12818,29980,29981,12847,926,12841,5009,29981,29982,29997,29986,29986,29979,29979,29980,29980,29977,12844,12835,12844,12833,12833,6632,29987,29988,29989,29990,29994,29986,29986,12846,12848,12848]} 1. d4 {[%emt 0:00:12]} Nf6 {[%emt 0:00:05]} 2. c4 {[%emt 0:00:02]} g6 {[%emt 0:00:02]} 3. Nf3 {[%emt 0:00:13]} Bg7 {[%emt 0:00:01]} 4. g3 {[%emt 0:00:02]} b6 {[%emt 0:00:07]} 5. Bg2 {[%emt 0:01:42]} Bb7 {[%emt 0:00:02]} 6. O-O {[%emt 0:00:01]} O-O {[%emt 0:00:05]} 7. Qc2 {[%emt 0:00:09]} e6 {[%emt 0:01:06] A50: Queen's Fianchetto Defence (1 d4 Nf6 2 c4 b6).} 8. Nc3 {[%emt 0:00:07]} d5 {[%emt 0:00:43]} 9. cxd5 {[%emt 0:00:34]} exd5 {[%emt 0:00:17] White is slightly better.} 10. Bf4 {[%emt 0:01:07]} Na6 {[%emt 0:00:02]} 11. Rfd1 {[%emt 0:00:22]} Qe7 {[%emt 0:00:15]} 12. Nb5 {[%emt 0:02:29] [#]} Rfd8 $146 {[%emt 0:00:19]} ({Predecessor:} 12... Ne4 13. Rac1 c6 14. Nc3 c5 15. dxc5 Nxc3 16. bxc3 Nxc5 17. c4 Rad8 {½-½ Kozionov,K (2456)-Tiviakov,S (2580) Voronezh op-A 22nd 2018 (5)}) 13. a3 {[%emt 0:00:21]} (13. Nxc7 Rdc8 14. Bh3 Nxc7 $17) 13... c6 {[%emt 0:00:15]} 14. Nc3 {[%emt 0:00:03]} c5 {[%emt 0:00:01]} 15. Be5 {[%emt 0:00:54]} Nc7 {[%emt 0:01:26]} 16. dxc5 {[%emt 0:01:00]} bxc5 {[%emt 0:00:01] [#]} 17. b4 $1 {[%emt 0:00:41]} d4 {[%emt 0:01:33]} (17... c4 18. Qb2) 18. Na4 {[%emt 0:00:37][%cal Bc3a4,Ba4c5,Bc5d3,Bd3f4][%mdl 32]} Bxf3 {[%emt 0:01:32]} 19. Bxc7 {[%emt 0:00:32]} Bxe2 $1 {[%emt 0:00:48]} 20. Bxd8 {[%emt 0:02:24]} Rxd8 {[%emt 0:00:00]} 21. Nxc5 $1 {[%emt 0:00:40] And now Rd2 would win.} (21. Qxc5 Qe8 22. Rd2 (22. Rxd4 $2 Rxd4 23. Qxd4 Ng4 $19) 22... d3) 21... d3 {[%emt 0:03:16]} (21... Bxd1 $11 22. Rxd1 Nd7) 22. Nxd3 $16 {[%emt 0:01:25] White leaves nothing to chance now.} Ng4 {[%emt 0:00:06] [#]} 23. Nf4 $1 {[%emt 0:00:03]} Bxd1 {[%emt 0:00:25]} (23... Rxd1+ 24. Rxd1) 24. Rxd1 {[%emt 0:00:00]} Bd4 {[%emt 0:00:10] [#]} 25. Rxd4 {[%emt 0:00:08][%mdl 576] Deflection} Rxd4 {[%emt 0:00:00]} (25... Qe1+ 26. Bf1) 26. Qc8+ {[%emt 0:00:02]} Rd8 {[%emt 0:01:41]} (26... Kg7 $16 {is a better defense.} 27. Qxg4 Qe1+ 28. Bf1 Rd1) 27. Qxg4 $18 {[%emt 0:00:02]} Qe1+ {[%emt 0:00:07]} 28. Bf1 {[%emt 0:00:01]} Qc3 {[%emt 0:00:00]} 29. Qg5 {[%emt 0:00:28]} Rd1 {[%emt 0:00:06]} 30. Qb5 {[%emt 0:00:02] Prevents Qc4} Qxa3 {[%emt 0:00:17]} 31. Qe8+ {[%emt 0:00:06]} Kg7 {[%emt 0:00:01]} 32. Qe5+ {[%emt 0:00:01]} Kg8 {[%emt 0:00:19]} 33. Nd5 {[%emt 0:00:06]} Qc1 $2 {[%emt 0:00:55][%mdl 8192]} (33... Qa1 $16 {was necessary.} 34. Qb8+ Kg7) 34. Qe8+ {[%emt 0:00:02]} (34. Nf6+ Kf8 35. Nxh7+ Kg8 36. Nf6+ Kf8 $18) 34... Kg7 {[%emt 0:00:01]} 35. Qe5+ {[%emt 0:00:00]} Kg8 $1 {[%emt 0:00:02]} 36. Nf6+ {[%emt 0:00:03]} Kg7 {[%emt 0:00:04] [#]} 37. Ng4+ $1 {[%emt 0:00:04]} (37. Ne8+ Kf8 38. Qh8+ Ke7 39. Qe5+ Kf8 40. Qh8+ Ke7 41. Qe5+ Kf8 $11) 37... Kg8 {[%emt 0:00:05]} 38. Qe8+ {[%emt 0:00:04]} (38. Nf6+ Kf8 39. Nxh7+ Kg8 40. Nf6+ Kf8 $18) 38... Kg7 {[%emt 0:00:02]} 39. Qe5+ {[%emt 0:00:00]} Kg8 {[%emt 0:00:00]} 40. Ne3 {[%emt 0:00:05]} ({Not} 40. Nf6+ Kf8 41. Nxh7+ Kg8 42. Nf6+ Kf8 $18) 40... Rd2 {[%emt 0:00:28]} 41. Qe8+ {[%emt 0:00:02]} Kg7 {[%emt 0:00:01]} 42. Qe5+ {[%emt 0:00:01]} Kg8 {[%emt 0:00:01]} 43. Qb8+ {[%emt 0:00:01]} Kg7 {[%emt 0:00:00]} 44. Qxa7 {[%emt 0:00:01]} ({But not} 44. Qe5+ Kg8 $18) 44... Qe1 {[%emt 0:00:06]} 45. Ng2 {[%emt 0:00:04]} Qb1 {[%emt 0:00:12]} 46. b5 {[%emt 0:00:08]} Rb2 $2 {[%emt 0:00:08]} (46... Qa2 47. Qe3 Qb2) 47. Qd4+ {[%emt 0:00:03]} Kg8 {[%emt 0:00:01]} 48. Qd8+ {[%emt 0:00:00]} Kg7 {[%emt 0:00:02]} 49. Qd4+ {[%emt 0:00:02]} (49. Qg5 $142 Qe4 50. Ne3) 49... Kg8 {[%emt 0:00:01]} 50. Ne3 {[%emt 0:00:07] Threatens to win with Ng4.} Rxb5 {[%emt 0:00:05]} 51. Ng4 {[%emt 0:00:01] Hoping for Nf6+.} Rb4 {[%emt 0:00:11]} 52. Qd8+ {[%emt 0:00:10]} Kg7 {[%emt 0:00:01]} 53. Qf6+ {[%emt 0:00:00]} Kf8 {[%emt 0:00:01]} 54. Ne5 {[%emt 0:00:01][%csl Ge5][%cal Rf6f7]} Rb7 {[%emt 0:00:04]} 55. Qh8+ {[%emt 0:00:05]} Ke7 {[%emt 0:00:01]} 56. Qxh7 {[%emt 0:00:01]} Qf5 {[%emt 0:00:01]} 57. Qh4+ {[%emt 0:00:05]} Kf8 {[%emt 0:00:08]} 58. Qh8+ {[%emt 0:00:02]} Ke7 {[%emt 0:00:01]} 59. Nc6+ {[%emt 0:00:01]} Kd6 {[%emt 0:00:02]} 60. Nd4 {[%emt 0:00:07]} ({Less strong is} 60. Qd8+ Kxc6 61. Bg2+ Kc5 $16) 60... Qd5 {[%emt 0:00:07]} 61. Qf6+ {[%emt 0:00:03]} (61. Qd8+ $142 Rd7 62. Nb5+ Ke6 63. Bh3+ f5 64. Nc7+ Rxc7 65. Qxc7) 61... Kc5 {[%emt 0:00:01]} 62. Ne2 {[%emt 0:00:03]} Qd6 {[%emt 0:00:04] Prevents Nf4.} 63. Qc3+ {[%emt 0:00:03]} Kb6 {[%emt 0:00:00]} 64. Nf4 {[%emt 0:00:02] h4 is the strong threat.} Rd7 {[%emt 0:00:04]} 65. h4 {[%emt 0:00:03] aiming for Bg2.} Qc5 {[%emt 0:00:02]} 66. Qb3+ {[%emt 0:00:02]} Kc7 {[%emt 0:00:01]} 67. Bg2 {[%emt 0:00:01]} Kd8 {[%emt 0:00:03]} 68. Nd5 {[%emt 0:00:02] Qb8+ would kill now.} Ra7 {[%emt 0:00:06]} 69. Qb8+ {[%emt 0:00:02]} Kd7 {[%emt 0:00:00]} 70. Nf6+ {[%emt 0:00:06]} (70. Nb6+ $142 Qxb6 71. Qxb6) 70... Ke6 {[%emt 0:00:04]} 71. Ne4 {[%emt 0:00:01]} (71. Qd8 $142 Qf5 72. Bd5+ Ke5 73. f4+ Kd4 74. Be6+ Kc3 75. Qc8+ Kd2 76. Bxf5 gxf5 77. Qxf5 Ra1+ 78. Kg2) 71... Ra1+ {[%emt 0:00:02]} 72. Kh2 {[%emt 0:00:01]} Qc1 {[%emt 0:00:09]} 73. Qe8+ {[%emt 0:00:02]} Kd5 {[%emt 0:00:01]} 74. Qxf7+ {[%emt 0:00:01]} Kd4 {[%emt 0:00:01]} 75. Qd7+ {[%emt 0:00:05]} Kc4 {[%emt 0:00:03]} 76. Qc6+ {[%emt 0:00:03]} Kd4 {[%emt 0:00:02]} 77. Qd6+ {[%emt 0:00:02]} Kc4 {[%emt 0:00:02]} 78. Qxg6 {[%emt 0:00:08] Threatening mate with Qc6+.} Qg1+ {[%emt 0:00:02]} 79. Kh3 {[%emt 0:00:01] White wants to mate with Qc6+.} Re1 {[%emt 0:00:07]} 80. Qc6+ {[%emt 0:00:01]} Kb3 {[%emt 0:00:02]} 81. Qb5+ {[%emt 0:00:05]} Ka3 {[%emt 0:00:02]} 82. Qa5+ {[%emt 0:00:02]} Kb3 {[%emt 0:00:01]} 83. Nd2+ {[%emt 0:00:03]} (83. Qc3+ $142 Ka2 84. Nd2 Qxg2+ 85. Kxg2 Rg1+ 86. Kh3 Rh1+ 87. Kg4 Rxh4+ 88. Kf3) 83... Kc2 {[%emt 0:00:05]} 84. Nf3 {[%emt 0:00:01][%csl LRe1,LRg1] Weighted Error Value: White=0.81/Black=0.28 (precise)} 1-0

[Event "AI Cup Div-2 2023"]
[Site "Online"]
[Date "2023.09.26"]
[Round "2.4"]
[White "Sarana, Alexey"]
[Black "Caruana, Fabiano"]
[Result "1-0"]
[ECO "D38"]
[WhiteElo "2693"]
[BlackElo "2786"]
[Annotator "TA"]
[PlyCount "101"]
[EventDate "2023.09.18"]
[EventType "k.o."]
[EventCountry "NET"]
[SourceTitle "playchess.com"]
[Source "ChessBase"]
[SourceQuality "1"]
[TimeControl "900+3"]

{[%evp 12,101,29,20,25,8,22,7,27,26,70,11,60,47,51,44,50,53,53,42,61,59,64,54,62,66,110,95,219,219,249,257,338,256,245,246,247,225,373,376,379,352,404,374,577,547,598,462,464,433,466,445,664,682,727,717,908,875,933,937,925,932,1253,993,905,976,830,991,969,926,870,863,1130,1085,1166,1246,1338,1262,1572,1630,1545,1454,1738,1646,1500,1430,2521,1430,29977,29978,29977,29978]} 1. d4 {[%emt 0:00:03]} Nf6 {[%emt 0:00:04]} 2. c4 {[%emt 0:00:01]} e6 {[%emt 0:00:01]} 3. Nf3 {[%emt 0:00:00]} d5 {[%emt 0:00:01]} 4. Nc3 {[%emt 0:00:01]} Bb4 {[%emt 0:00:03]} 5. Qa4+ {[%emt 0:00:02]} Nc6 {[%emt 0:00:02]} 6. e3 {[%emt 0:00:01]} O-O {[%emt 0:00:03]} 7. Bd2 {[%emt 0:00:02]} Re8 {[%emt 0:00:20] D38: Queen's Gambit Declined: Ragozin Defence (4 Nf3 Bb4).} 8. Rd1 {[%emt 0:00:36]} Bf8 {[%emt 0:00:22]} 9. Be2 {[%emt 0:00:19]} a6 {[%emt 0:01:42] The position is equal.} 10. O-O {[%emt 0:00:52] [#]} h6 $146 {[%emt 0:00:05]} ({Predecessor:} 10... Rb8 11. Qc2 dxc4 12. Bxc4 b5 13. Be2 Bb7 14. Bc1 Nb4 15. Qb1 Nbd5 16. Bd2 Nxc3 17. Bxc3 {0-1 Turzo,A (2298)-Horvath,D (2501) HUN-chT 2223 2022 (4.4)}) 11. Bc1 {[%emt 0:01:03]} (11. Ne5 $14) 11... Bd6 {[%emt 0:02:27]} (11... Bd7 $11 12. Qc2 Nb4) 12. c5 $14 {[%emt 0:00:46]} Bf8 {[%emt 0:00:03]} 13. b4 {[%emt 0:00:01]} Bd7 {[%emt 0:01:31][%cal Oc6d4] [#] And now ...Nxd4! would win.} 14. Qb3 {[%emt 0:00:02]} b6 {[%emt 0:00:04]} 15. Ne5 {[%emt 0:01:31]} Nxe5 {[%emt 0:01:06]} 16. dxe5 {[%emt 0:00:01]} Nh7 {[%emt 0:00:00]} 17. cxb6 {[%emt 0:01:56] White is more active.} cxb6 {[%emt 0:00:19]} 18. e4 {[%emt 0:00:01]} a5 {[%emt 0:01:10]} 19. b5 {[%emt 0:01:27]} Bc5 {[%emt 0:02:43] [#] This move loses the game for Black.} (19... Qc7 $16) 20. Na4 $1 $18 {[%emt 0:00:50]} (20. exd5 $6 exd5 21. Qxd5 (21. Rxd5 Qe7 $16) 21... Nf8 $16) 20... d4 {[%emt 0:00:50]} 21. Bb2 {[%emt 0:01:38]} Bc8 {[%emt 0:01:14]} 22. Nxc5 {[%emt 0:00:25]} bxc5 {[%emt 0:00:00]} 23. Qc4 {[%emt 0:00:01]} Bb7 {[%emt 0:00:52]} 24. Qxc5 {[%emt 0:00:03]} Qh4 {[%emt 0:00:11]} (24... Bxe4 $142 25. Qxd4 (25. Rxd4 Bd5 $18) 25... Bd5) 25. f3 {[%emt 0:00:22]} (25. Rxd4 Rac8 26. Qa3 Qf4 $18) (25. Bxd4 Rec8 $18) (25. Qxd4 Qxe4 26. Qxe4 Bxe4 $18) 25... Nf8 {[%emt 0:00:07]} 26. Qxd4 {[%emt 0:00:04]} ({But not} 26. Bxd4 Ng6 27. g3 Qe7 28. Qxe7 Rxe7) ({Don't do} 26. Rxd4 Rac8 27. Qa3 Qg5 $18) 26... Ng6 {[%emt 0:00:03]} 27. g3 {[%emt 0:00:08]} Qh5 {[%emt 0:00:08]} (27... Qg5 {keeps fighting.} 28. f4 Qe7) 28. Qf2 {[%emt 0:00:53]} Rac8 {[%emt 0:00:14]} 29. Rd2 {[%emt 0:00:17][%cal Bd1d2,Bd2d7,Bd7c7][%mdl 32] Dodges Rc2} Qg5 {[%emt 0:00:19]} 30. Rfd1 {[%emt 0:00:11]} Ba8 {[%emt 0:00:05]} 31. b6 {[%emt 0:00:25]} Rb8 {[%emt 0:00:04]} (31... h5 $142 32. Bb5 Red8) 32. Rd7 {[%emt 0:00:21]} Nf8 {[%emt 0:00:00]} 33. Rc7 {[%emt 0:00:08]} h5 {[%emt 0:00:14]} 34. h4 {[%emt 0:00:22]} Qg6 {[%emt 0:00:03]} 35. Kh2 {[%emt 0:00:00]} Qh6 {[%emt 0:00:11]} 36. Bc1 {[%emt 0:00:03]} Qg6 {[%emt 0:00:01]} 37. Qe3 {[%emt 0:00:03]} Nh7 {[%emt 0:00:05]} 38. Rdd7 {[%emt 0:00:04]} Nf8 {[%emt 0:00:04]} 39. Rxf7 {[%emt 0:00:09]} Qxf7 {[%emt 0:00:00]} 40. Rxf7 {[%emt 0:00:00]} Kxf7 {[%emt 0:00:00]} 41. Ba3 {[%emt 0:00:01]} Rec8 {[%emt 0:00:03]} 42. Bd6 {[%emt 0:00:03]} Rb7 {[%emt 0:00:00]} 43. Ba6 {[%emt 0:00:03]} Rc2+ {[%emt 0:00:02]} 44. Kg1 {[%emt 0:00:01] Qf4+ is the strong threat.} Ng6 {[%emt 0:00:07] Against Qf4+} 45. Bxb7 {[%emt 0:00:04]} Bxb7 {[%emt 0:00:00]} 46. Qb3 {[%emt 0:00:04]} Rc6 {[%emt 0:00:03]} 47. Qb5 {[%emt 0:00:04]} Rc1+ {[%emt 0:00:03]} 48. Kf2 {[%emt 0:00:01] White threatens Qd7+ and mate.} Rc2+ {[%emt 0:00:00]} 49. Ke1 {[%emt 0:00:01] Intending Qd7+ and mate.} Kg8 {[%emt 0:00:05]} 50. Qd7 {[%emt 0:00:05]} Ba6 {[%emt 0:00:01]} 51. b7 {[%emt 0:00:01] An entertaining game by Sarana.   Weighted Error Value: White=0.12 (very precise) /Black=0.53} 1-0

[Event "AI Cup Div-2 2023"]
[Site "Online"]
[Date "2023.09.27"]
[Round "3.1"]
[White "Artemiev, Vladislav"]
[Black "Andreikin, Dmitry"]
[Result "1-0"]
[ECO "E61"]
[WhiteElo "2697"]
[BlackElo "2729"]
[Annotator "TA"]
[PlyCount "83"]
[EventDate "2023.09.18"]
[EventType "k.o."]
[EventCountry "NET"]
[SourceTitle "playchess.com"]
[Source "ChessBase"]
[SourceQuality "1"]
[TimeControl "900+3"]

{[%evp 10,83,29,0,20,24,14,18,12,7,37,27,29,54,48,24,41,15,32,31,29,15,50,8,7,0,0,0,0,0,0,0,28,23,44,44,54,13,38,22,93,91,80,77,183,246,224,213,222,229,323,239,241,240,241,240,233,228,247,195,191,199,358,347,1254,1202,1262,1027,1427,1356,1279,1270,29975,29976,29979,29980]} 1. c4 {[%emt 0:00:16]} Nf6 {[%emt 0:00:07]} 2. Nc3 {[%emt 0:00:05]} d6 {[%emt 0:00:02]} 3. g3 {[%emt 0:00:21]} g6 {[%emt 0:00:23]} 4. Bg2 {[%emt 0:00:02]} Bg7 {[%emt 0:00:01]} 5. d4 {[%emt 0:00:46]} O-O {[%emt 0:00:03]} 6. h3 {[%emt 0:00:04]} c5 {[%emt 0:01:00] E61: King's Indian: Early deviations for White, including Smyslov System.} 7. e3 {[%emt 0:00:07]} Nc6 {[%emt 0:03:13][%cal Bb8c6,Bc6b4,Bb4d3][%mdl 32]} 8. Nge2 {[%emt 0:00:02]} e5 {[%emt 0:00:02] The position is equal.} 9. O-O {[%emt 0:01:28]} Re8 {[%emt 0:00:03] [#]} 10. dxc5 $146 {[%emt 0:02:01]} ({Predecessor:} 10. d5 Ne7 11. e4 a6 12. a3 Bd7 13. Qd3 Qc8 14. Kh2 b5 15. b3 Rb8 16. Bd2 Rf8 17. cxb5 axb5 {1-0 Poloch,P (2264)-Pagerka,M (2260) Frydek Mistek IM-A 2011 (5)}) 10... dxc5 {[%emt 0:00:03]} 11. Qxd8 {[%emt 0:01:28]} Rxd8 {[%emt 0:00:00]} 12. b3 {[%emt 0:00:08]} Nb4 {[%emt 0:00:53]} 13. a3 {[%emt 0:02:06]} Nd3 {[%emt 0:00:11]} 14. Rd1 {[%emt 0:00:04]} Be6 {[%emt 0:00:37]} 15. Rb1 {[%emt 0:01:18]} Rd7 {[%emt 0:01:17]} 16. g4 {[%emt 0:01:25][%cal Bg3g4,Bg4g5][%mdl 32]} Rad8 {[%emt 0:00:21]} 17. g5 {[%emt 0:00:45]} Ne8 {[%emt 0:00:23]} 18. Nd5 {[%emt 0:00:34]} Nxc1 {[%emt 0:02:10]} 19. Rbxc1 {[%emt 0:00:14]} h6 {[%emt 0:00:11]} 20. h4 {[%emt 0:00:23]} hxg5 {[%emt 0:00:01]} 21. hxg5 {[%emt 0:00:01]} Bf8 {[%emt 0:00:09]} 22. Nec3 {[%emt 0:00:28][%cal Be2c3,Bc3a4,Ba4c5][%mdl 32]} Kg7 {[%emt 0:00:03]} 23. Kh2 {[%emt 0:00:30]} a6 {[%emt 0:00:54]} 24. a4 {[%emt 0:01:06][%cal Ba3a4,Ba4a5][%mdl 32]} (24. Rh1 {is more complex.} b5 25. Kg3 Bd6 26. Ne4) 24... Bf5 {[%emt 0:01:47]} (24... Bxd5 $1 $11 {keeps the balance.} 25. Nxd5 (25. Bxd5 Be7 $11) 25... f5) 25. a5 $16 {[%emt 0:00:18] Black is now going downhill.} Bd6 {[%emt 0:00:39]} 26. Kg1 {[%emt 0:00:07] White is more active.} Bc7 {[%emt 0:00:31] [#]} (26... Rb8 $16 {might work better.}) 27. Na4 $1 $18 {[%emt 0:00:01] Excellent horsemanship.} Bg4 {[%emt 0:00:25]} 28. f3 {[%emt 0:00:09]} Be6 {[%emt 0:00:08][%cal Re6d5]} 29. Nxc5 {[%emt 0:00:01]} Bxa5 {[%emt 0:00:03]} (29... Bxd5 {is a better defense.} 30. Nxd7 (30. Rxd5 Rxd5 31. cxd5 Bxa5 $11) 30... Rxd7) 30. Nxd7 {[%emt 0:00:02]} Rxd7 {[%emt 0:00:00]} 31. b4 {[%emt 0:00:05]} Bd8 {[%emt 0:00:03]} 32. f4 {[%emt 0:00:01]} Bg4 {[%emt 0:00:25]} 33. Rd3 {[%emt 0:00:07]} Bf5 {[%emt 0:00:07]} 34. Rd2 {[%emt 0:00:03]} exf4 {[%emt 0:00:05]} 35. exf4 {[%emt 0:00:02]} Nc7 $2 {[%emt 0:00:05]} (35... a5 36. bxa5 Bxa5) 36. Rcd1 {[%emt 0:00:01] Hoping for Ne3.} a5 $2 {[%emt 0:00:18]} (36... Nxd5 37. Rxd5 Rxd5 38. Bxd5 b6) 37. Ne3 {[%emt 0:00:02]} Rxd2 {[%emt 0:00:03]} 38. Rxd2 {[%emt 0:00:01]} Ne6 {[%emt 0:00:00]} 39. Nxf5+ {[%emt 0:00:06]} ({Not} 39. Bxb7 axb4 40. Nxf5+ gxf5 $18) 39... gxf5 {[%emt 0:00:00] [#]} 40. Rxd8 $1 {[%emt 0:00:05][%cal Ob4a5][%mdl 512] bxa5! is the strong threat.} Nxd8 {[%emt 0:00:03]} (40... axb4 41. Rb8) 41. bxa5 {[%emt 0:00:00]} Kf8 {[%emt 0:00:06] [#]} 42. Bxb7 $1 {[%emt 0:00:02][%mdl 576] Remove Defender, Deflection.   Weighted Error Value: White=0.13 (very precise) /Black=0.41} 1-0

[Event "AI Cup Div-2 2023"]
[Site "Online"]
[Date "2023.09.27"]
[Round "3.1"]
[White "Sarana, Alexey"]
[Black "Fedoseev, Vladimir"]
[Result "0-1"]
[ECO "D16"]
[WhiteElo "2693"]
[BlackElo "2683"]
[Annotator "ChessBase"]
[PlyCount "102"]
[EventDate "2023.09.18"]
[EventType "k.o."]
[EventCountry "NET"]
[SourceTitle "playchess.com"]
[Source "ChessBase"]
[SourceQuality "1"]
[TimeControl "900+3"]

1. d4 {[%emt 0:00:04]} d5 {[%emt 0:00:10]} 2. c4 {[%emt 0:00:01]} c6 {[%emt 0:00:02]} 3. Nf3 {[%emt 0:00:01]} Nf6 {[%emt 0:00:02]} 4. Nc3 {[%emt 0:00:01]} dxc4 {[%emt 0:00:03]} 5. a4 {[%emt 0:00:01]} e6 {[%emt 0:00:02]} 6. e3 {[%emt 0:00:29]} c5 {[%emt 0:00:03]} 7. Bxc4 {[%emt 0:00:04]} Nc6 {[%emt 0:00:01]} 8. O-O {[%emt 0:00:15]} cxd4 {[%emt 0:00:01]} 9. exd4 {[%emt 0:00:02]} Be7 {[%emt 0:00:00]} 10. Bf4 {[%emt 0:00:32]} O-O {[%emt 0:00:04]} 11. Re1 {[%emt 0:00:04]} Bd7 {[%emt 0:00:35]} 12. d5 {[%emt 0:01:27]} exd5 {[%emt 0:00:03]} 13. Nxd5 {[%emt 0:00:01]} Nxd5 {[%emt 0:00:01]} 14. Bxd5 {[%emt 0:00:00]} Bb4 {[%emt 0:00:11]} 15. Re4 {[%emt 0:00:25]} a5 {[%emt 0:00:03]} 16. Qb3 {[%emt 0:01:34]} Qf6 {[%emt 0:02:09]} 17. Rd1 {[%emt 0:01:30]} h6 {[%emt 0:00:45]} 18. Be5 {[%emt 0:01:31]} Nxe5 {[%emt 0:01:57]} 19. Nxe5 {[%emt 0:00:07]} Bf5 {[%emt 0:00:04]} 20. Re2 {[%emt 0:01:42]} Rae8 {[%emt 0:00:27]} 21. f4 {[%emt 0:01:27]} Re7 {[%emt 0:00:30]} 22. Qf3 {[%emt 0:00:17]} Rd8 {[%emt 0:01:45]} 23. h3 {[%emt 0:01:04]} Be6 {[%emt 0:01:52]} 24. Ng4 {[%emt 0:00:23]} Qh4 {[%emt 0:00:04]} 25. Rxe6 {[%emt 0:01:44]} fxe6 {[%emt 0:01:29]} 26. g3 {[%emt 0:00:02]} Qxh3 {[%emt 0:00:03]} 27. Bxe6+ {[%emt 0:00:01]} Rxe6 {[%emt 0:00:04]} 28. Rxd8+ {[%emt 0:00:00]} Kh7 {[%emt 0:00:14]} 29. Qd3+ {[%emt 0:00:14]} Rg6 {[%emt 0:00:03]} 30. Nf6+ {[%emt 0:01:01]} gxf6 {[%emt 0:00:03]} 31. Rd7+ {[%emt 0:00:01]} Kh8 {[%emt 0:00:01]} 32. Rd8+ {[%emt 0:00:02]} Rg8 {[%emt 0:00:02]} 33. Rxg8+ {[%emt 0:00:08]} Kxg8 {[%emt 0:00:00]} 34. Qg6+ {[%emt 0:00:01]} Kf8 {[%emt 0:00:03]} 35. Qxf6+ {[%emt 0:00:00]} Ke8 {[%emt 0:00:01]} 36. Qg6+ {[%emt 0:00:13]} Kd8 {[%emt 0:00:12]} 37. Kf2 {[%emt 0:00:16]} Kc7 {[%emt 0:00:22]} 38. Qc2+ {[%emt 0:00:07]} Kb8 {[%emt 0:00:03]} 39. Qg6 {[%emt 0:00:03]} h5 {[%emt 0:00:09]} 40. Qe8+ {[%emt 0:00:02]} Ka7 {[%emt 0:00:06]} 41. Qe3+ {[%emt 0:00:01]} b6 {[%emt 0:00:08]} 42. Qd3 {[%emt 0:00:08]} Bc5+ {[%emt 0:00:07]} 43. Ke2 {[%emt 0:00:03]} Qg4+ {[%emt 0:00:15]} 44. Kf1 {[%emt 0:00:03]} Qg7 {[%emt 0:00:05]} 45. b3 {[%emt 0:00:01]} Qb7 {[%emt 0:00:51]} 46. f5 {[%emt 0:00:03]} Qc6 {[%emt 0:00:11]} 47. Ke2 {[%emt 0:00:03]} Kb7 {[%emt 0:00:02]} 48. Ke1 {[%emt 0:00:04]} Kc7 {[%emt 0:00:03]} 49. Ke2 {[%emt 0:00:03]} Qg2+ {[%emt 0:00:15]} 50. Kd1 {[%emt 0:00:01]} Qf2 {[%emt 0:00:06]} 51. Qe4 {[%emt 0:00:01]} Qd4+ {[%emt 0:00:06]} 0-1

[Event "AI Cup Div-2 2023"]
[Site "Online"]
[Date "2023.09.27"]
[Round "3.2"]
[White "Fedoseev, Vladimir"]
[Black "Sarana, Alexey"]
[Result "1-0"]
[ECO "A07"]
[WhiteElo "2683"]
[BlackElo "2693"]
[Annotator "ChessBase"]
[PlyCount "93"]
[EventDate "2023.09.18"]
[EventType "k.o."]
[EventCountry "NET"]
[SourceTitle "playchess.com"]
[Source "ChessBase"]
[SourceQuality "1"]
[TimeControl "900+3"]

1. Nf3 {[%emt 0:00:09]} d5 {[%emt 0:00:04]} 2. g3 {[%emt 0:00:12]} g6 {[%emt 0:00:03]} 3. Bg2 {[%emt 0:00:02]} Bg7 {[%emt 0:00:00]} 4. O-O {[%emt 0:00:01]} e5 {[%emt 0:00:01]} 5. d3 {[%emt 0:00:02]} Nc6 {[%emt 0:00:02]} 6. e4 {[%emt 0:00:34]} Nge7 {[%emt 0:00:02]} 7. Nc3 {[%emt 0:00:44]} d4 {[%emt 0:00:01]} 8. Ne2 {[%emt 0:00:03]} a5 {[%emt 0:00:01]} 9. c3 {[%emt 0:00:26]} dxc3 {[%emt 0:00:15]} 10. bxc3 {[%emt 0:00:08]} O-O {[%emt 0:00:01]} 11. d4 {[%emt 0:00:58]} exd4 {[%emt 0:00:02]} 12. cxd4 {[%emt 0:00:07]} Bg4 {[%emt 0:00:03]} 13. Be3 {[%emt 0:00:11]} Nc8 {[%emt 0:00:41]} 14. h3 {[%emt 0:00:31]} Bd7 {[%emt 0:01:11]} 15. Rc1 {[%emt 0:00:24]} Nd6 {[%emt 0:00:01]} 16. d5 {[%emt 0:01:10]} Nb4 {[%emt 0:00:02]} 17. a3 {[%emt 0:00:19]} Na6 {[%emt 0:00:02]} 18. e5 {[%emt 0:00:15]} Nf5 {[%emt 0:00:05]} 19. Bf4 {[%emt 0:00:01]} Bb5 {[%emt 0:00:19]} 20. Re1 {[%emt 0:00:08]} Ne7 {[%emt 0:00:11]} 21. Nc3 {[%emt 0:00:10]} Be8 {[%emt 0:00:05]} 22. d6 {[%emt 0:00:48]} cxd6 {[%emt 0:00:02]} 23. exd6 {[%emt 0:00:00]} Nc6 {[%emt 0:00:01]} 24. Nd5 {[%emt 0:00:01]} Bd7 {[%emt 0:00:41]} 25. Qb3 {[%emt 0:00:21]} a4 {[%emt 0:00:56]} 26. Qxb7 {[%emt 0:00:50]} Na5 {[%emt 0:00:01]} 27. Ne7+ {[%emt 0:00:03]} Kh8 {[%emt 0:00:01]} 28. Qd5 {[%emt 0:00:15]} Be6 {[%emt 0:00:40]} 29. Qd1 {[%emt 0:00:08]} Bb3 {[%emt 0:00:58]} 30. Qd3 {[%emt 0:00:04]} Nb7 {[%emt 0:01:07]} 31. Nd2 {[%emt 0:00:48]} Nac5 {[%emt 0:00:10]} 32. Qe3 {[%emt 0:00:04]} g5 {[%emt 0:01:05]} 33. Be5 {[%emt 0:00:44]} Bxe5 {[%emt 0:00:07]} 34. Qxe5+ {[%emt 0:00:03]} f6 {[%emt 0:00:00]} 35. Qd4 {[%emt 0:00:05]} Ra6 {[%emt 0:00:11]} 36. Nc6 {[%emt 0:00:45]} Qb6 {[%emt 0:01:13]} 37. Re7 {[%emt 0:00:46]} Bg8 {[%emt 0:00:31]} 38. d7 {[%emt 0:00:35]} Nb3 {[%emt 0:00:13]} 39. Nxb3 {[%emt 0:00:08]} axb3 {[%emt 0:00:02]} 40. Qb2 {[%emt 0:00:03]} Raa8 {[%emt 0:00:33]} 41. Re8 {[%emt 0:00:08]} Kg7 {[%emt 0:00:01]} 42. Rce1 {[%emt 0:00:36]} Nd6 {[%emt 0:00:33]} 43. Rxa8 {[%emt 0:00:46]} Rxa8 {[%emt 0:00:00]} 44. Re7+ {[%emt 0:00:02]} Bf7 {[%emt 0:00:08]} 45. Bd5 {[%emt 0:00:06]} Rf8 {[%emt 0:00:20]} 46. Qxb3 {[%emt 0:00:07]} Qc5 {[%emt 0:00:28]} 47. d8=Q {[%emt 0:00:06]} 1-0